Cogmind - Beta 15 @@@ ROGUE MODE // 2025.10.20 @ 04:29:16 Player: lepire Result: Destroyed by E6-4SO(R) with Subdweller Laser Performance ------------- Evolutions (0) 0 Regions Visited (3) 600 Robots Destroyed (30) 150 Value Destroyed (576) 576 Prototype IDs (4) 80 Alien Tech Used (0) 0 Bonus (0) 0 TOTAL SCORE: 1406 Bonus ------- None Cogmind --------- Core Integrity 0/250 Matter 280/300 Energy 90/100 System Corruption 2% Temperature Warm (176) Movement Core (400) Ox7 Location -10/Subcaves Parts ------- > --- POWER (1) -------- (None) > --- PROPULSION (2) --- (None) > --- UTILITY (2) ------ Large Storage Unit > --- WEAPON (2) ------- Particle Gun > --- INVENTORY (15) --- Ion Engine High-capacity Matter Pod (170) Visual Processing Unit Signal Interpreter Seismic Detector Targeting Computer Propulsion Shielding Datajack Mining Laser Peak State ------------ > --- POWER ------------ Ion Engine > --- PROPULSION ------- Light Treads Wheel > --- UTILITY ---------- Large Storage Unit Light Armor Plating > --- WEAPON ----------- Particle Gun Assault Rifle > --- INVENTORY -------- Ion Engine Light Treads Large Matter Pod Visual Processing Unit Signal Interpreter Seismic Detector Targeting Computer Datajack Mining Claw [Rating: 9] Favorites ----------- Power Ion Engine Engine Ion Engine Propulsion Light Treads Treads Light Treads Leg Aluminum Leg Wheel Wheel Utility Large Storage Unit Device Seismic Detector Storage Large Storage Unit Protection Light Armor Plating Weapon Assault Rifle Energy Gun Particle Gun Ballistic Gun Assault Rifle Special Weapon Mining Laser Slashing Weapon Mining Claw Build | -11 -10 -10 -10 ------- Run | Yrd Mat Min Sub Slots Evolved . | . . . . Power . | . . . . Propulsion . | . . . . Utility . | . . . . Weapon . | . . . . Parts Attached 17 | 3 10 2 2 Power 1 | . 1 . . Engine 1 | . 1 . . Core . | . . . . Reactor . | . . . . Propulsion 5 | 2 1 2 . Treads 2 | 1 . 1 . Leg . | . . . . Wheel 3 | 1 1 1 . Hover . | . . . . Flight . | . . . . Utility 4 | 1 3 . . Device 1 | 1 . . . Storage 2 | . 2 . . Processor . | . . . . Hackware . | . . . . Protection 1 | . 1 . . Artifact . | . . . . Weapon 7 | . 5 . 2 Energy Gun 2 | . 1 . 1 Energy Cannon . | . . . . Ballistic Gun 2 | . 2 . . Ballistic Cannon . | . . . . Launcher . | . . . . Special Weapon 2 | . 1 . 1 Impact Weapon . | . . . . Slashing Weapon 1 | . 1 . . Piercing Weapon . | . . . . Special Melee Weapon . | . . . . Unidentified Prototypes . | . . . . Parts Lost 7 | . . 2 5 Power 1 | . . . 1 Propulsion 3 | . . 1 2 Utility 1 | . . 1 . Weapon 2 | . . . 2 Highest Loss Streak 5 | . . 2 5 To Critical Strikes . | . . . . Average Backups 8 | 4 8 9 9 Power 1 | 1 1 1 1 Propulsion 1 | 2 1 . . Utility 4 | . 4 6 6 Weapon 1 | 1 1 1 1 Tool/Special . | . . . . Unused Backups 20 | 8 5 . 7 Power 2 | 1 . . 1 Propulsion 4 | 4 . . . Utility 9 | 1 3 . 5 Weapon 3 | 2 1 . . Tool/Special 2 | . 1 . 1 Average Slot Usage (%) 97 | . 99 97 75 Engine 13 | . 14 14 12 Treads 13 | . 14 13 9 Wheel 13 | . 14 14 11 Device 5 | . 5 7 . Storage 14 | . 14 14 14 Protection 6 | . 8 4 . Energy Gun 9 | . 7 14 18 Ballistic Gun 16 | . 18 14 6 Peak Build Rating 9 | 7 9 9 9 Average Rating 8 | 6 7 8 7 On Entrance 7 | 6 7 9 8 Naked Turns . | . . . . Heaviest Build 33 | 14 33 33 30 Greatest Support 20 | 20 16 10 10 Greatest Overweight (x) 3 | . 3 3 2 Average Overweight (x) 2 | . 1 2 2 Largest Inventory Capacity 15 | 8 15 15 15 Average Capacity 12 | 8 10 15 15 Most Carried 11 | 6 11 11 9 Average Carried 8 | 4 8 9 9 Final Capacity 15 | 8 15 15 15 Final Carried 10 | 5 10 9 9 Class Distribution -------------------- 100% | Mutant Dominant Class ---------------- Mutant | -10/Materials Mutant | -10/Mines Mutant | -10/Subcaves Resources | -11 -10 -10 -10 ----------- Run | Yrd Mat Min Sub Matter Collected 1111 | 266 635 175 35 Remotely . | . . . . Salvage Created 947 | 141 577 147 82 Parts 66 | 7 38 15 6 Haulers Intercepted 2 | . 2 . . Recyclers Shooed 3 | 1 1 1 . Parts Field Recycled . | . . . . Retrieved Matter . | . . . . Parts Self-Destructed 8 | . . . 8 Prevented . | . . . . Kills | -11 -10 -10 -10 ------- Run | Yrd Mat Min Sub Combat Hostiles Destroyed 19 | . 15 2 2 Guns 19 | . 15 2 2 Classes Destroyed 6 | 2 4 . . Tunneler 5 | 2 . 3 . Hauler 2 | . 2 . . Recycler 2 | 1 1 . . Watcher 2 | . 2 . . Swarmer 8 | . 8 . . Grunt 11 | . 7 2 2 Best Kill Streak 3 | 2 3 2 2 Combat Bots Only 3 | . 3 1 2 Max Kills in Single Turn 1 | 1 1 1 1 Gunslinging . | . . . . Exploded . | . . . . Melee . | . . . . Uniques/NPCs Destroyed . | . . . . Combat | -11 -10 -10 -10 -------- Run | Yrd Mat Min Sub Hostile Shots Fired 116 | . 60 21 35 Missed 38 | . 22 5 11 Hits 78 | . 38 16 24 Projectile 78 | . 38 16 24 AOE 2 | . . 2 . Critical Strikes 1 | . . 1 . Damage Taken 1157 | . 389 308 460 Core 257 | . 54 . 203 Absorbed by Shields . | . . . . Regen/Repaired (Parts) 30 | . 30 . . Core Remaining (%) 100 | 100 . . . Volleys Fired 117 | 9 65 15 28 Largest 2 | 2 2 2 2 Hottest 130 | 40 100 85 130 Shots Fired 224 | 18 128 29 49 Gun 221 | 18 126 29 48 Cannon . | . . . . Launcher . | . . . . Special 3 | . 2 . 1 Kinetic 132 | 18 95 14 5 Thermal 92 | . 33 15 44 Explosive . | . . . . Electromagnetic . | . . . . Robot Hit Streak 18 | 7 13 4 18 Robot Miss Streak 6 | 3 6 2 2 Penetration Max . | . . . . Secondary Targets 3 | . 3 . . Max Gunslinging Chain 1 | . 1 . . Shots Hit Robots 142 | 11 75 19 37 Core Hits 48 | 6 31 7 4 Critical Kills 1 | . 1 . . Critical Parts Destroyed . | . . . . Critical Strikes 3 | . 2 . 1 Burn 2 | . 1 . 1 Destroy 1 | . 1 . . Melee Attacks 16 | . 16 . . Impact . | . . . . Slashing 16 | . 16 . . Piercing . | . . . . Sneak Attacks . | . . . . Combat Hostiles . | . . . . Follow-up Attacks . | . . . . Damage Inflicted 1444 | 127 931 247 139 Guns 1444 | 127 931 247 139 Cannons . | . . . . Explosions . | . . . . Melee . | . . . . Ramming . | . . . . Kinetic 930 | 127 637 126 40 Thermal 514 | . 294 121 99 Explosive . | . . . . Electromagnetic . | . . . . Impact . | . . . . Slashing . | . . . . Piercing . | . . . . Highest Corruption 2 | . 2 2 2 Average Corruption 2 | . 2 2 2 Corruption Purged . | . . . . Corruption Blocked . | . . . . Effects 18 | . 8 8 2 Message Errors 2 | . . 1 1 Matter Fused 4 | . 1 3 . Heat Flow Errors 3 | . 2 1 . Energy Discharges 1 | . . 1 . Data Loss (minor) 5 | . 3 1 1 Misfires 2 | . 2 . . Alerts 1 | . . 1 . Overload Shots . | . . . . Overflow Damage . | . . . . Projectiles . | . . . . Explosions . | . . . . Melee . | . . . . Knockbacks . | . . . . Impact . | . . . . Kinetic . | . . . . Secondary . | . . . . Self-Inflicted Damage . | . . . . Shots . | . . . . Rammed . | . . . . Targets Rammed . | . . . . Kicked . | . . . . Crushed . | . . . . Highest Temperature 269 | . 219 269 212 Average Temperature 71 | . 52 94 113 Received Heat Transfer 441 | . 144 141 156 Effects 3 | . 1 2 . Energy Bleed 1 | . 1 . . Interference 2 | . . 2 . Siege Activations . | . . . . Martial Activations . | . . . . Shielding Activations . | . . . . Robots Disrupted . | . . . . Combat Hostiles . | . . . . Robots Corrupted . | . . . . Combat Hostiles . | . . . . Parts Fried . | . . . . Impact Corruptions . | . . . . Robots Melted . | . . . . Combat Hostiles . | . . . . Parts Melted 5 | . 4 . 1 Heat Transferred 1369 | . 740 296 333 Parts Sabotaged . | . . . . Parts Stolen . | . . . . Parts Stripped . | . . . . Power Chain Reactions . | . . . . Alert | -11 -10 -10 -10 ------- Run | Yrd Mat Min Sub Maximum Alert Level . | . . . . Low Security (%) 100 | 100 100 100 . Level 1 . | . . . . Level 2 . | . . . . Level 3 . | . . . . Level 4 . | . . . . Level 5 . | . . . . High Security . | . . . . Max Security . | . . . . Peak Influence 153 | 5 153 34 . Initial 27 | . . 27 . Average 47 | 1 72 4 . Influence Increases 666 | 15 502 99 50 Destroy 0b10 Robot/C 380 | . 300 40 40 Destroy 0b10 Robot/NC 55 | 15 25 15 . Destroy Leader 88 | . 68 10 10 Allied During Kill 4 | . . 4 . Successful Hack 14 | . 14 . . Select Force Hacks 30 | . 30 . . Destroy Structure 5 | . 5 . . Lose Combat Pursuer 90 | . 60 30 . Influence Decreases 666 | 15 430 141 80 Entered New Map 61 | . . 45 16 Time Decay 556 | 15 430 77 34 Lost Part 42 | . . 12 30 Lost Ally 7 | . . 7 . Squads Dispatched 4 | . 4 . . Investigation 1 | . 1 . . Extermination . | . . . . Reinforcement 3 | . 3 . . Assault . | . . . . Garrison . | . . . . Intercept . | . . . . Searches Triggered . | . . . . Construction Impeded . | . . . . Haulers Reinforced . | . . . . Active Scanning Responses . | . . . . Cargo Convoy Interrupts . | . . . . Stealth | -11 -10 -10 -10 --------- Run | Yrd Mat Min Sub Distress Signals 3 | . 3 . . Communications Jammed . | . . . . Distress Signals . | . . . . Times Spotted 34 | . 27 4 3 Peak Tracking Total 6 | . 6 3 2 Tactical Retreats 4 | . 3 1 . Traps | -11 -10 -10 -10 ------- Run | Yrd Mat Min Sub Traps Triggered 1 | . 1 . . Indirectly . | . . . . Trap Hack Attempts . | . . . . Triggered . | . . . . Disarmed . | . . . . Reprogrammed . | . . . . Reused . | . . . . Traps Extracted . | . . . . Installed . | . . . . Triggered . | . . . . Machines | -11 -10 -10 -10 ---------- Run | Yrd Mat Min Sub Machines Disabled . | . . . . Max in Single Turn . | . . . . Machines Repaired . | . . . . Machines Dismantled . | . . . . Machines Sabotaged . | . . . . Overloaded Fab Kills . | . . . . Hacking | -11 -10 -10 -10 --------- Run | Yrd Mat Min Sub Machines Accessed 7 | . 7 . . Terminals 4 | . 4 . . Fabricators . | . . . . Repair Stations 1 | . 1 . . Recycling Units 2 | . 2 . . Scanalyzers . | . . . . Garrison Access . | . . . . Total Hacks 16 | . 16 . . Successful 11 | . 11 . . Failed 4 | . 4 . . Catastrophic . | . . . . Database Lockouts 1 | . 1 . . Manual 9 | . 9 . . Terminals 10 | . 10 . . Fabricators . | . . . . Repair Stations 2 | . 2 . . Recycling Units 4 | . 4 . . Scanalyzers . | . . . . Garrison Access . | . . . . Terminal Hacks 4 | . 4 . . Prototype ID Bank 3 | . 3 . . Locate Traps 1 | . 1 . . Fabricator Hacks . | . . . . Repair Station Hacks 2 | . 2 . . Scan Component 1 | . 1 . . Repair 1 | . 1 . . Recycling Unit Hacks 3 | . 3 . . Report Inventory 2 | . 2 . . Retrieve Components 1 | . 1 . . Scanalyzer . | . . . . Garrison Access Hacks . | . . . . Unauthorized Hacks 2 | . 2 . . Terminals 1 | . 1 . . Assimilate 1 | . 1 . . Fabricators . | . . . . Repair Stations . | . . . . Recycling Units 1 | . 1 . . Tunnel 1 | . 1 . . Scanalyzers . | . . . . Garrison Access . | . . . . Data Cores Recovered . | . . . . Used . | . . . . Hacking Detections 3 | . 3 . . Full Trace Events . | . . . . Feedback Events . | . . . . Feedback Blocked . | . . . . Robot Schematics Acquired . | . . . . Robots Built . | . . . . Authchips . | . . . . Time . | . . . . Total Robot Build Rating . | . . . . Part Schematics Acquired . | . . . . Parts Built . | . . . . Authchips . | . . . . Time . | . . . . Total Part Build Rating . | . . . . Parts Repaired 1 | . 1 . . Time 26 | . 26 . . Parts Recycled . | . . . . Recycled Matter . | . . . . Retrieved Matter . | . . . . Retrieved Components 1 | . 1 . . Parts Scanalyzed . | . . . . Part Schematics Acquired . | . . . . Parts Damaged . | . . . . Bothacking | -11 -10 -10 -10 ------------ Run | Yrd Mat Min Sub Used RIF Installer . | . . . . Robots Hacked . | . . . . Non-combat . | . . . . Combat . | . . . . Robot Hacks Applied . | . . . . Relay Couplers Released . | . . . . Fabnet Peak Effective % . | . . . . Robots Rewired . | . . . . Allies Hacked . | . . . . Hacks Repelled . | . . . . Allies | -11 -10 -10 -10 -------- Run | Yrd Mat Min Sub Total Allies 2 | . . 2 . Largest Group 2 | . . 2 . Highest-Rated Group 41 | . . 41 . Highest-Rated Ally 31 | . . 31 . Total Orders . | . . . . Ally Attacks 3 | . . 3 . Total Damage 22 | . . 22 . Kills . | . . . . Allies Corrupted . | . . . . Allies Melted . | . . . . Intel | -11 -10 -10 -10 ------- Run | Yrd Mat Min Sub Active Infowar (turns) 862 | 12 488 362 . Seismic 862 | 12 488 362 . Robot Analysis Total . | . . . . Derelict Logs Recovered . | . . . . Drone Launches . | . . . . Drone Recoveries . | . . . . Exploration | -11 -10 -10 -10 ------------- Run | Yrd Mat Min Sub Turns Passed 2201 | 74 1336 674 117 Spaces Moved 1433 | 27 871 506 29 Core . | . . . . Treads 27 | 27 . . . Legs . | . . . . Wheels 1406 | . 871 506 29 Hover . | . . . . Flight . | . . . . Fastest Speed 95 | 160 95 110 110 Average Speed 114 | 160 108 122 110 Slowest Speed 160 | 160 125 125 110 Overloaded Moves . | . . . . Propulsion Burnouts . | . . . . Robots Hopped . | . . . . Potential Cave-ins . | . . . . Cave-ins Triggered . | . . . . Exploration Rate (%) 41 | 5 91 66 2 Regions Visited 3 Branch Regions 2 Pre-discovered Areas 1 | . 1 . . Known Exits Taken . | . . . . Unknown Exits Taken 3 | 1 1 1 . Scrap Searched 1 | . . 1 . Spaces Dug 5 | . 5 . . Terrain Destroyed 5 | . 5 . . Melee 3 | . 3 . . Projectile 2 | . 2 . . AOE . | . . . . Terrain Rammed . | . . . . Walls Destroyed . | . . . . Machines Disabled . | . . . . Actions | -11 -10 -10 -10 --------- Run | Yrd Mat Min Sub Total 1731 | 41 1097 532 61 Wait 99 | . 91 7 1 Move 1430 | 26 870 505 29 Hop . | . . . . Pick Up 14 | 1 13 . . Fast Attach 3 | 1 1 . 1 Attach 1 | . . 1 . Detach . | . . . . Swap 37 | 2 30 3 2 Drop 14 | 2 11 1 . Fire 117 | 9 65 15 28 Melee 16 | . 16 . . Ram . | . . . . Kick . | . . . . Crush . | . . . . Escape Stasis . | . . . . Rewire . | . . . . Trap . | . . . . Miscellaneous . | . . . . Route ------- -11/Scrapyard -10/Materials (discovered 4 exits: [*Mat x3] / [*Min]) -10/Mines (discovered 3 exits: [*Mat x2] / [*Sub]) -10/Subcaves History --------- Turn | Location | Event 22 | -11/Scrapyard | Discovered new exit (range 3) 75 | -11/Scrapyard | Entered Materials 308 | -10/Materials | Build established: Mutant 430 | -10/Materials | Repaired Assault Rifle 510 | -10/Materials | Discovered new exit (range 16) 703 | -10/Materials | Discovered new exit (range 16) 1022 | -10/Materials | Discovered new exit (range 5) 1318 | -10/Materials | Discovered new exit (range 16) 1350 | -10/Materials | Central database locked down 1411 | -10/Materials | Entered Mines 1466 | -10/Mines | Discovered new exit (range 3) 1716 | -10/Mines | Discovered new exit (range 12) 1829 | -10/Mines | Discovered new exit (range 9) 2038 | -10/Mines | Assembled infested the area 2043 | -10/Mines | Assisted by a Guerilla fighting off Assembled 2085 | -10/Mines | Entered Subcaves 2087 | -10/Subcaves | Lost 3 allies 2153 | -10/Subcaves | Ambushed by angry Subdweller bent on revenge 2173 | -10/Subcaves | Core integrity fell below 50% 2195 | -10/Subcaves | Core integrity fell below 20% 2202 | -10/Subcaves | Destroyed by E6-4SO(R) with Subdweller Laser Last Messages --------------- 02145_ Imp. Heat Sink melted. 02145_ G-47 Trooper destroyed. 02148_ Acquired Particle Gun. 02150_ G-34 Mercenary destroyed. 02151_ Subatomizers dissect the Lgt. Nuclear Core. 02153_ E6-4SO(R) angrily emerges from the Twisted Machinery. 02153_ E6-4SO(R): "SUBMAD!" 02153_ Lgt. Nuclear Core fries itself beyond repair. 02155_ Heat Sink fries itself beyond repair. 02160_ Lgt. Treads destroyed. 02168_ Sml. Laser fries itself beyond repair. 02168_ Aluminum Leg fries itself beyond repair. 02168_ Ion Engine fries itself beyond repair. 02182_ Wheel destroyed. 02192_ Ion Engine destroyed. 02196_ Particle Gun destroyed. 02202_ LPEE:>260E YJGJDAIOJY&,